[Event "*** Titled Tuesday 3|2 Blitz (Early)"]
[Site "Chess.com"]
[Date "2017.01.03"]
[Round "7"]
[White "Alexander_Moskalenko"]
[Black "DuleMudule"]
[Result "1-0"]
[WhiteElo "2666"]
[BlackElo "2517"]
[TimeControl "180+2"]
[EndTime "12:32:31 PST"]
[Termination "Alexander_Moskalenko won by resignation"]

1. d4 {[%clk 0:03:02]} 1... d5 {[%clk 0:03:00.6]} 2. Bf4 {[%clk 0:03:03.4]} 2...
c5 {[%clk 0:02:58.8]} 3. e3 {[%clk 0:03:04.4]} 3... Nc6 {[%clk 0:03:00.3]} 4. c3
{[%clk 0:03:04.3]} 4... Bf5 {[%clk 0:02:58]} 5. Nd2 {[%clk 0:03:02.9]} 5... Qb6
{[%clk 0:02:58.4]} 6. Qb3 {[%clk 0:02:43.8]} 6... e6 {[%clk 0:02:56.6]} 7. Ngf3
{[%clk 0:02:40.3]} 7... c4 {[%clk 0:02:57.5]} 8. Qxb6 {[%clk 0:02:37.8]} 8...
axb6 {[%clk 0:02:59.4]} 9. Nh4 {[%clk 0:02:39.7]} 9... Bc2 {[%clk 0:02:59.2]}
10. Rc1 {[%clk 0:02:35.4]} 10... Rxa2 {[%clk 0:02:52.3]} 11. Rxc2 {[%clk
0:02:36.1]} 11... Ra1+ {[%clk 0:02:53.5]} 12. Ke2 {[%clk 0:02:35.4]} 12... f6
{[%clk 0:02:54.4]} 13. Bc7 {[%clk 0:02:24.5]} 13... b5 {[%clk 0:02:54.2]} 14. g4
{[%clk 0:02:26.1]} 14... Kd7 {[%clk 0:02:53.2]} 15. Bg3 {[%clk 0:02:21.3]} 15...
b4 {[%clk 0:02:41.6]} 16. Bg2 {[%clk 0:02:21.4]} 16... Ra2 {[%clk 0:02:41]} 17.
Rb1 {[%clk 0:02:00.2]} 17... Bd6 {[%clk 0:02:24.9]} 18. Bxd6 {[%clk 0:01:56.5]}
18... Kxd6 {[%clk 0:02:26.8]} 19. f4 {[%clk 0:01:56.3]} 19... Nge7 {[%clk
0:02:22.9]} 20. Nhf3 {[%clk 0:01:57.4]} 20... b5 {[%clk 0:02:23.5]} 21. Kd1
{[%clk 0:01:49]} 21... h5 {[%clk 0:02:16.8]} 22. g5 {[%clk 0:01:49.7]} 22... Nf5
{[%clk 0:02:17.7]} 23. Nf1 {[%clk 0:01:46.5]} 23... b3 {[%clk 0:02:11.4]} 24.
Rcc1 {[%clk 0:01:47.8]} 24... b4 {[%clk 0:02:10.3]} 25. Bh3 {[%clk 0:01:48.1]}
25... Nfe7 {[%clk 0:02:07.8]} 26. Kd2 {[%clk 0:01:42.3]} 26... Rha8 {[%clk
0:01:55.3]} 27. Ng3 {[%clk 0:01:43]} 27... Na7 {[%clk 0:01:48.2]} 28. Nxh5
{[%clk 0:01:25.6]} 28... Rh8 {[%clk 0:01:34.9]} 29. Bg4 {[%clk 0:01:26.7]} 29...
f5 {[%clk 0:01:35.9]} 30. Ne5 {[%clk 0:01:27.5]} 30... Kc7 {[%clk 0:01:31.7]}
31. Be2 {[%clk 0:01:28]} 31... g6 {[%clk 0:01:31.3]} 32. Ng7 {[%clk 0:01:26.6]}
32... Rxh2 {[%clk 0:01:31]} 33. Nxe6+ {[%clk 0:01:24.9]} 33... Kd6 {[%clk
0:01:31.4]} 34. Nc5 {[%clk 0:01:00]} 34... Nb5 {[%clk 0:01:30.5]} 35. cxb4
{[%clk 0:00:57.7]} 35... Na3 {[%clk 0:01:11.7]} 36. b5 {[%clk 0:00:52.3]} 36...
Nxb5 {[%clk 0:01:07.9]} 37. Nf3 {[%clk 0:00:53.3]} 37... Rg2 {[%clk 0:00:59.7]}
38. Ke1 {[%clk 0:00:54.5]} 38... Na3 {[%clk 0:00:51.5]} 39. Kf1 {[%clk
0:00:55.9]} 39... Nxb1 {[%clk 0:00:51.4]} 40. Rxb1 {[%clk 0:00:57.8]} 40... Rg3
{[%clk 0:00:50.8]} 41. Kf2 {[%clk 0:00:58.3]} 41... Rh3 {[%clk 0:00:51.9]} 42.
Bf1 {[%clk 0:00:59.2]} 42... Rh8 {[%clk 0:00:52.5]} 43. Ne5 {[%clk 0:01:00.7]}
43... c3 {[%clk 0:00:47.6]} 44. Nf7+ {[%clk 0:00:57.2]} 44... Kc6 {[%clk
0:00:46.8]} 45. Nxh8 {[%clk 0:00:59.1]} 45... c2 {[%clk 0:00:46.8]} 46. Rc1
{[%clk 0:01:00.4]} 46... Rxb2 {[%clk 0:00:47.4]} 47. Nxb3 {[%clk 0:01:01.9]}
47... Rxb3 {[%clk 0:00:43.8]} 48. Rxc2+ {[%clk 0:01:03.1]} 48... Kd7 {[%clk
0:00:45.1]} 49. Nf7 {[%clk 0:01:03.3]} 49... Ra3 {[%clk 0:00:42.3]} 50. Ne5+
{[%clk 0:01:05.2]} 50... Kd6 {[%clk 0:00:42.9]} 51. Rb2 {[%clk 0:01:06.8]} 51...
Kc7 {[%clk 0:00:43.4]} 52. Bd3 {[%clk 0:01:06.7]} 52... Ra1 {[%clk 0:00:42.6]}
53. Kf3 {[%clk 0:01:03.4]} 53... Ra3 {[%clk 0:00:43.4]} 54. Rh2 {[%clk 0:01:04]}
54... Nc8 {[%clk 0:00:42]} 55. Rh7+ {[%clk 0:01:04.6]} 55... Kd8 {[%clk
0:00:37.9]} 56. Nf7+ {[%clk 0:01:02.5]} 56... Ke7 {[%clk 0:00:38.1]} 57. Ne5+
{[%clk 0:01:03.7]} 57... Kd8 {[%clk 0:00:37.1]} 58. Rh6 {[%clk 0:00:58.4]} 58...
Ra2 {[%clk 0:00:34]} 59. Rxg6 {[%clk 0:00:58.9]} 59... Ke7 {[%clk 0:00:35.6]}
60. Bxf5 {[%clk 0:00:59]} 60... Nd6 {[%clk 0:00:36.1]} 61. Re6+ {[%clk
0:01:00.2]} 1-0

[Event "*** Titled Tuesday 3|2 Blitz (Early)"]
[Site "Chess.com"]
[Date "2017.01.03"]
[Round "7"]
[White "superjem123"]
[Black "rubhani"]
[Result "1-0"]
[WhiteElo "2488"]
[BlackElo "2412"]
[TimeControl "180+2"]
[EndTime "12:32:44 PST"]
[Termination "superjem123 won by resignation"]

1. c4 {[%clk 0:03:01.1]} 1... e5 {[%clk 0:03:00]} 2. g3 {[%clk 0:03:02.4]} 2...
Bc5 {[%clk 0:03:01.1]} 3. Bg2 {[%clk 0:03:03.6]} 3... Nf6 {[%clk 0:03:01.2]} 4.
Nc3 {[%clk 0:03:04.7]} 4... O-O {[%clk 0:03:01.7]} 5. e3 {[%clk 0:03:06]} 5...
d6 {[%clk 0:03:02.5]} 6. Na4 {[%clk 0:03:05.8]} 6... Bb6 {[%clk 0:03:00.3]} 7.
Nxb6 {[%clk 0:03:04.3]} 7... axb6 {[%clk 0:03:01]} 8. Ne2 {[%clk 0:03:02.5]}
8... Nc6 {[%clk 0:02:59.4]} 9. d3 {[%clk 0:03:02]} 9... Bg4 {[%clk 0:02:58.1]}
10. h3 {[%clk 0:03:02.5]} 10... Bh5 {[%clk 0:02:58.6]} 11. O-O {[%clk
0:03:02.1]} 11... Re8 {[%clk 0:02:59.3]} 12. b3 {[%clk 0:02:52.4]} 12... Qd7
{[%clk 0:02:59.5]} 13. f3 {[%clk 0:02:33.6]} 13... d5 {[%clk 0:02:58.3]} 14. e4
{[%clk 0:02:27.9]} 14... dxe4 {[%clk 0:02:31]} 15. dxe4 {[%clk 0:02:29.8]} 15...
Nd4 {[%clk 0:02:18.4]} 16. Be3 {[%clk 0:02:21.6]} 16... Nxe2+ {[%clk 0:02:10.7]}
17. Qxe2 {[%clk 0:02:20.8]} 17... Nxe4 {[%clk 0:02:11.6]} 18. g4 {[%clk
0:02:01.5]} 18... Ng3 {[%clk 0:02:10]} 19. Qd1 {[%clk 0:02:01.9]} 19... Qe6
{[%clk 0:01:27.8]} 20. Re1 {[%clk 0:01:56.8]} 20... Rad8 {[%clk 0:01:21.7]} 21.
Qc1 {[%clk 0:01:52.9]} 21... Bg6 {[%clk 0:01:00.3]} 22. Bf2 {[%clk 0:01:51.4]}
22... e4 {[%clk 0:00:52.8]} 23. Bxg3 {[%clk 0:01:23.6]} 23... e3 {[%clk
0:00:53.9]} 24. Bxc7 {[%clk 0:01:18.6]} 24... Rd2 {[%clk 0:00:26]} 25. Bf4
{[%clk 0:01:01.8]} 25... Qf6 {[%clk 0:00:20.7]} 26. Qxd2 {[%clk 0:00:40.2]}
26... Qxf4 {[%clk 0:00:19.7]} 27. Qe2 {[%clk 0:00:33.7]} 27... Qg3 {[%clk
0:00:20.3]} 28. Rad1 {[%clk 0:00:29.3]} 28... h5 {[%clk 0:00:21.4]} 29. Rd5
{[%clk 0:00:24]} 29... hxg4 {[%clk 0:00:22.3]} 30. hxg4 {[%clk 0:00:25]} 30...
f5 {[%clk 0:00:22.7]} 31. gxf5 {[%clk 0:00:24.7]} 31... Bh5 {[%clk 0:00:23.2]}
32. Rf1 {[%clk 0:00:20]} 32... Qf4 {[%clk 0:00:18.7]} 33. Rfd1 {[%clk
0:00:13.1]} 33... Kh7 {[%clk 0:00:16.3]} 34. f6 {[%clk 0:00:12.4]} 34... Bf7
{[%clk 0:00:15.8]} 35. R5d4 {[%clk 0:00:10.6]} 35... Qxf6 {[%clk 0:00:16.7]} 36.
Re4 {[%clk 0:00:11.9]} 36... Rxe4 {[%clk 0:00:14.9]} 37. fxe4 {[%clk 0:00:13.8]}
37... Qg5 {[%clk 0:00:16.8]} 38. Rf1 {[%clk 0:00:14.6]} 38... Bh5 {[%clk
0:00:17.8]} 39. Rf3 {[%clk 0:00:13]} 39... Bxf3 {[%clk 0:00:18.3]} 40. Qxf3
{[%clk 0:00:14.9]} 40... g6 {[%clk 0:00:18.9]} 41. Kf1 {[%clk 0:00:15.7]} 41...
Kh6 {[%clk 0:00:19.8]} 42. Ke2 {[%clk 0:00:16.5]} 42... Kg7 {[%clk 0:00:20.4]}
43. Bh3 {[%clk 0:00:16.5]} 43... Qe5 {[%clk 0:00:21.7]} 44. Qxe3 {[%clk
0:00:17.3]} 44... Qb2+ {[%clk 0:00:22.8]} 45. Qd2 {[%clk 0:00:18.4]} 45... Qe5
{[%clk 0:00:23.9]} 46. Bg2 {[%clk 0:00:14.7]} 46... Qg3 {[%clk 0:00:25.1]} 47.
Kd1 {[%clk 0:00:15.6]} 47... Qg4+ {[%clk 0:00:25.4]} 48. Kc2 {[%clk 0:00:16.8]}
48... Qg3 {[%clk 0:00:26.5]} 49. Qc3+ {[%clk 0:00:16.9]} 1-0

[Event "*** Titled Tuesday 3|2 Blitz (Early)"]
[Site "Chess.com"]
[Date "2017.01.03"]
[Round "7"]
[White "biostatistician"]
[Black "Hamisandwich"]
[Result "1-0"]
[WhiteElo "2435"]
[BlackElo "2374"]
[TimeControl "180+2"]
[EndTime "12:33:46 PST"]
[Termination "biostatistician won by resignation"]

1. d4 {[%clk 0:03:02]} 1... e6 {[%clk 0:02:55.9]} 2. Nf3 {[%clk 0:03:03.9]} 2...
c5 {[%clk 0:02:53.5]} 3. e3 {[%clk 0:03:00.9]} 3... Nf6 {[%clk 0:02:52.5]} 4.
Bd3 {[%clk 0:03:01.9]} 4... b6 {[%clk 0:02:54]} 5. O-O {[%clk 0:03:02.9]} 5...
Bb7 {[%clk 0:02:55.5]} 6. b3 {[%clk 0:03:04.2]} 6... Be7 {[%clk 0:02:56.3]} 7.
Bb2 {[%clk 0:03:05.6]} 7... O-O {[%clk 0:02:57.9]} 8. Qe2 {[%clk 0:03:04.9]}
8... d6 {[%clk 0:02:55.9]} 9. c4 {[%clk 0:03:04.2]} 9... cxd4 {[%clk 0:02:56.3]}
10. exd4 {[%clk 0:03:04.4]} 10... d5 {[%clk 0:02:57.4]} 11. Nc3 {[%clk
0:03:04.8]} 11... Nc6 {[%clk 0:02:51.4]} 12. cxd5 {[%clk 0:03:01.8]} 12... Nxd5
{[%clk 0:02:52.8]} 13. Qe4 {[%clk 0:02:55.2]} 13... Nf6 {[%clk 0:02:49.9]} 14.
Qh4 {[%clk 0:02:55.2]} 14... Nb4 {[%clk 0:02:47.8]} 15. Be2 {[%clk 0:02:29.7]}
15... Rc8 {[%clk 0:02:42.6]} 16. Qh3 {[%clk 0:02:11.3]} 16... Ne4 {[%clk
0:02:18.3]} 17. Nxe4 {[%clk 0:02:04]} 17... Bxe4 {[%clk 0:02:20.2]} 18. Rfc1
{[%clk 0:01:39.1]} 18... Qd5 {[%clk 0:01:50.1]} 19. Bc4 {[%clk 0:01:33.6]} 19...
Qf5 {[%clk 0:01:49]} 20. Qxf5 {[%clk 0:01:30.9]} 20... Bxf5 {[%clk 0:01:50]} 21.
Rd1 {[%clk 0:01:25.1]} 21... Rfd8 {[%clk 0:01:39.8]} 22. a3 {[%clk 0:01:22.7]}
22... Nd5 {[%clk 0:01:08.2]} 23. Rac1 {[%clk 0:01:12]} 23... Bg4 {[%clk
0:01:01]} 24. Bxd5 {[%clk 0:00:57.8]} 24... exd5 {[%clk 0:00:45.7]} 25. Re1
{[%clk 0:00:43.4]} 25... Bf8 {[%clk 0:00:33.7]} 26. Ne5 {[%clk 0:00:42.6]} 26...
Bf5 {[%clk 0:00:21.2]} 27. Nc6 {[%clk 0:00:23.7]} 27... Rd7 {[%clk 0:00:22]} 28.
b4 {[%clk 0:00:21]} 28... a6 {[%clk 0:00:21.3]} 29. a4 {[%clk 0:00:21.1]} 29...
Rdc7 {[%clk 0:00:17.8]} 30. b5 {[%clk 0:00:22.1]} 30... axb5 {[%clk 0:00:19.7]}
31. axb5 {[%clk 0:00:23.5]} 31... Bd7 {[%clk 0:00:21.1]} 32. Kf1 {[%clk
0:00:21.1]} 32... Bxc6 {[%clk 0:00:21.8]} 33. bxc6 {[%clk 0:00:23]} 33... Rxc6
{[%clk 0:00:23.7]} 34. Rxc6 {[%clk 0:00:23.7]} 34... Rxc6 {[%clk 0:00:25.6]} 35.
Re8 {[%clk 0:00:25.1]} 35... Re6 {[%clk 0:00:24.7]} 36. Rd8 {[%clk 0:00:25.2]}
36... Rd6 {[%clk 0:00:24.2]} 37. Rb8 {[%clk 0:00:24.8]} 37... f5 {[%clk
0:00:22.8]} 38. Ba3 {[%clk 0:00:25.6]} 38... Rf6 {[%clk 0:00:24.4]} 39. Bxf8
{[%clk 0:00:24.8]} 39... Rxf8 {[%clk 0:00:26.3]} 40. Rxb6 {[%clk 0:00:26.1]}
40... Rd8 {[%clk 0:00:26.7]} 41. Ke2 {[%clk 0:00:26.1]} 41... Kf7 {[%clk
0:00:25.5]} 42. Ke3 {[%clk 0:00:26.9]} 42... Re8+ {[%clk 0:00:25.5]} 43. Kd3
{[%clk 0:00:28.1]} 43... Rd8 {[%clk 0:00:21.9]} 44. Ke3 {[%clk 0:00:27.3]} 44...
Re8+ {[%clk 0:00:21.1]} 45. Kd3 {[%clk 0:00:26.2]} 45... Re6 {[%clk 0:00:18.6]}
46. Rxe6 {[%clk 0:00:24.9]} 46... Kxe6 {[%clk 0:00:19.7]} 47. Kc3 {[%clk
0:00:24.5]} 47... Kd6 {[%clk 0:00:15.1]} 48. Kb4 {[%clk 0:00:25.3]} 48... Kc6
{[%clk 0:00:16.4]} 49. Ka5 {[%clk 0:00:25.8]} 49... f4 {[%clk 0:00:17.6]} 50. g4
{[%clk 0:00:24]} 50... f3 {[%clk 0:00:13.6]} 51. h3 {[%clk 0:00:21.6]} 51... h6
{[%clk 0:00:10.8]} 52. Ka6 {[%clk 0:00:22.1]} 52... g6 {[%clk 0:00:11.9]} 53.
Ka5 {[%clk 0:00:23]} 53... h5 {[%clk 0:00:12.4]} 54. gxh5 {[%clk 0:00:15]} 54...
gxh5 {[%clk 0:00:13.1]} 55. Ka6 {[%clk 0:00:12.1]} 55... Kc7 {[%clk 0:00:04.6]}
56. Kb5 {[%clk 0:00:12.3]} 56... Kd6 {[%clk 0:00:06]} 57. Kb6 {[%clk 0:00:13.3]}
57... Ke6 {[%clk 0:00:07.6]} 58. Kc5 {[%clk 0:00:14.7]} 58... Kf5 {[%clk
0:00:09.3]} 59. Kxd5 {[%clk 0:00:16.2]} 59... Kg5 {[%clk 0:00:10.9]} 60. Ke4
{[%clk 0:00:17]} 60... Kh4 {[%clk 0:00:12.6]} 61. Kxf3 {[%clk 0:00:17.6]} 61...
Kxh3 {[%clk 0:00:14.3]} 62. d5 {[%clk 0:00:19]} 62... Kh2 {[%clk 0:00:15.7]} 63.
d6 {[%clk 0:00:20.9]} 63... h4 {[%clk 0:00:17.6]} 64. d7 {[%clk 0:00:21.2]}
64... h3 {[%clk 0:00:19.5]} 65. d8=Q {[%clk 0:00:20.7]} 65... Kg1 {[%clk
0:00:21.4]} 66. Qg5+ {[%clk 0:00:20.5]} 66... Kh1 {[%clk 0:00:20.8]} 67. Kg3
{[%clk 0:00:19.5]} 1-0

[Event "*** Titled Tuesday 3|2 Blitz (Early)"]
[Site "Chess.com"]
[Date "2017.01.03"]
[Round "7"]
[White "Buffy7"]
[Black "sandropozo"]
[Result "0-1"]
[WhiteElo "2496"]
[BlackElo "2428"]
[TimeControl "180+2"]
[EndTime "12:33:51 PST"]
[Termination "sandropozo won by resignation"]

1. Nf3 {[%clk 0:03:02]} 1... d5 {[%clk 0:02:58.8]} 2. g3 {[%clk 0:03:03.9]} 2...
g6 {[%clk 0:03:00]} 3. Bg2 {[%clk 0:03:05.3]} 3... Bg7 {[%clk 0:03:01.6]} 4. d4
{[%clk 0:03:05.4]} 4... Nf6 {[%clk 0:03:01.1]} 5. O-O {[%clk 0:03:06.8]} 5...
O-O {[%clk 0:03:02.5]} 6. c4 {[%clk 0:03:08.5]} 6... c6 {[%clk 0:03:02]} 7. Nbd2
{[%clk 0:03:09.9]} 7... a5 {[%clk 0:02:54.3]} 8. b3 {[%clk 0:03:10.4]} 8... a4
{[%clk 0:02:54.2]} 9. Ba3 {[%clk 0:02:59]} 9... Ne4 {[%clk 0:02:42.5]} 10. e3
{[%clk 0:02:42.9]} 10... Bf5 {[%clk 0:02:23.6]} 11. Nxe4 {[%clk 0:02:22.1]}
11... Bxe4 {[%clk 0:02:23.1]} 12. Bh3 {[%clk 0:02:13.8]} 12... Nd7 {[%clk
0:02:04.7]} 13. Ng5 {[%clk 0:02:14.5]} 13... Nf6 {[%clk 0:01:48.6]} 14. f3
{[%clk 0:02:05.8]} 14... Bf5 {[%clk 0:01:47.6]} 15. Bxf5 {[%clk 0:02:06.5]}
15... gxf5 {[%clk 0:01:49.2]} 16. Qc2 {[%clk 0:02:05.2]} 16... Qd7 {[%clk
0:01:47.3]} 17. Bc5 {[%clk 0:01:56.7]} 17... Rfe8 {[%clk 0:01:34.4]} 18. Nh3
{[%clk 0:01:45.7]} 18... e6 {[%clk 0:01:27.6]} 19. Nf4 {[%clk 0:01:39.5]} 19...
Ra6 {[%clk 0:01:24.4]} 20. Nd3 {[%clk 0:01:12.3]} 20... Rea8 {[%clk 0:01:12.9]}
21. a3 {[%clk 0:00:49.4]} 21... b6 {[%clk 0:00:42.6]} 22. Bb4 {[%clk 0:00:49.4]}
22... axb3 {[%clk 0:00:43.9]} 23. Qxb3 {[%clk 0:00:51.3]} 23... dxc4 {[%clk
0:00:45]} 24. Qxc4 {[%clk 0:00:53.2]} 24... Nd5 {[%clk 0:00:43.2]} 25. Rfe1
{[%clk 0:00:50]} 25... Nxe3 {[%clk 0:00:34.2]} 26. Rxe3 {[%clk 0:00:42.3]} 26...
Qxd4 {[%clk 0:00:35.7]} 27. Qxd4 {[%clk 0:00:41.2]} 27... Bxd4 {[%clk
0:00:37.1]} 28. Re1 {[%clk 0:00:41.5]} 28... c5 {[%clk 0:00:38]} 29. Bd2 {[%clk
0:00:41.8]} 29... Rxa3 {[%clk 0:00:37.7]} 30. Nf4 {[%clk 0:00:41.6]} 30... Ra2
{[%clk 0:00:27.3]} 31. Bc1 {[%clk 0:00:38.8]} 31... Rc2 {[%clk 0:00:26.3]} 32.
Ne2 {[%clk 0:00:32.7]} 32... Bxe3+ {[%clk 0:00:18.4]} 33. Bxe3 {[%clk
0:00:34.6]} 33... Raa2 {[%clk 0:00:18.5]} 34. Nf4 {[%clk 0:00:33.7]} 34... Rxh2
{[%clk 0:00:17.9]} 35. Rb1 {[%clk 0:00:23]} 35... Rhb2 {[%clk 0:00:17.6]} 36.
Rd1 {[%clk 0:00:23.1]} 36... e5 {[%clk 0:00:14.1]} 37. Nh5 {[%clk 0:00:21.1]}
37... Kf8 {[%clk 0:00:13.4]} 38. Rd8+ {[%clk 0:00:19.6]} 38... Ke7 {[%clk
0:00:14.6]} 39. Bg5+ {[%clk 0:00:21]} 39... f6 {[%clk 0:00:15.9]} 40. Bxf6+
{[%clk 0:00:22.5]} 40... Ke6 {[%clk 0:00:16.1]} 41. Re8+ {[%clk 0:00:20.8]}
41... Kd7 {[%clk 0:00:15.7]} 42. Rd8+ {[%clk 0:00:21.7]} 42... Kc7 {[%clk
0:00:16]} 43. Rd1 {[%clk 0:00:23.3]} 43... e4 {[%clk 0:00:13.7]} 44. Bxb2 {[%clk
0:00:23.5]} 44... Rxb2 {[%clk 0:00:14.9]} 45. f4 {[%clk 0:00:25]} 45... c4
{[%clk 0:00:15]} 46. Ng7 {[%clk 0:00:26.4]} 46... c3 {[%clk 0:00:15.3]} 47. Ne6+
{[%clk 0:00:27.7]} 47... Kb7 {[%clk 0:00:14.4]} 48. Nd4 {[%clk 0:00:28.8]} 48...
Rd2 {[%clk 0:00:15]} 49. Rc1 {[%clk 0:00:27.6]} 49... Rxd4 {[%clk 0:00:15.8]}
50. Rxc3 {[%clk 0:00:29.2]} 50... b5 {[%clk 0:00:15.9]} 51. Rc5 {[%clk 0:00:30]}
51... Kb6 {[%clk 0:00:16.5]} 52. Rxf5 {[%clk 0:00:31.3]} 52... b4 {[%clk
0:00:17.8]} 53. Rf8 {[%clk 0:00:32.5]} 53... Kb5 {[%clk 0:00:17]} 54. f5 {[%clk
0:00:33]} 54... Kc4 {[%clk 0:00:16.1]} 55. f6 {[%clk 0:00:33.5]} 55... Kb3
{[%clk 0:00:16.5]} 56. Kf2 {[%clk 0:00:33.5]} 56... Rd3 {[%clk 0:00:17.2]} 57.
Re8 {[%clk 0:00:34.9]} 57... Rf3+ {[%clk 0:00:17.9]} 58. Ke2 {[%clk 0:00:36.4]}
58... Rxf6 {[%clk 0:00:19]} 59. Rxe4 {[%clk 0:00:38]} 59... Kc3 {[%clk
0:00:19.7]} 60. Re3+ {[%clk 0:00:38.8]} 60... Kc2 {[%clk 0:00:20.7]} 61. Re8
{[%clk 0:00:38.8]} 61... Rc6 {[%clk 0:00:20.1]} 62. Kf2 {[%clk 0:00:34.6]} 62...
b3 {[%clk 0:00:19.1]} 63. Re2+ {[%clk 0:00:35.6]} 63... Kd3 {[%clk 0:00:19.3]}
64. Re3+ {[%clk 0:00:36.7]} 64... Kc2 {[%clk 0:00:20.4]} 65. Re2+ {[%clk
0:00:36.9]} 65... Kc1 {[%clk 0:00:21.3]} 66. Re1+ {[%clk 0:00:38.2]} 66... Kb2
{[%clk 0:00:22.2]} 67. Kf3 {[%clk 0:00:39.2]} 67... Ka2 {[%clk 0:00:22.6]} 68.
Re8 {[%clk 0:00:33.4]} 68... Ra6 {[%clk 0:00:21]} 69. Kg4 {[%clk 0:00:29.8]}
69... b2 {[%clk 0:00:21.4]} 0-1

[Event "*** Titled Tuesday 3|2 Blitz (Early)"]
[Site "Chess.com"]
[Date "2017.01.03"]
[Round "7"]
[White "Vrolijk"]
[Black "FearlessKing64"]
[Result "1-0"]
[WhiteElo "2282"]
[BlackElo "2073"]
[TimeControl "180+2"]
[EndTime "12:33:54 PST"]
[Termination "Vrolijk won by resignation"]

1. d4 {[%clk 0:03:02]} 1... Nf6 {[%clk 0:03:00.6]} 2. c4 {[%clk 0:03:00.4]} 2...
g6 {[%clk 0:03:01.3]} 3. Nc3 {[%clk 0:03:00.6]} 3... d5 {[%clk 0:03:02.5]} 4.
cxd5 {[%clk 0:02:56.6]} 4... Nxd5 {[%clk 0:03:04.4]} 5. e3 {[%clk 0:02:57.6]}
5... Bg7 {[%clk 0:03:04.2]} 6. Nxd5 {[%clk 0:02:56.9]} 6... Qxd5 {[%clk
0:03:04.5]} 7. Ne2 {[%clk 0:02:58.8]} 7... e5 {[%clk 0:02:43]} 8. Nc3 {[%clk
0:02:57.4]} 8... Qa5 {[%clk 0:02:40.8]} 9. dxe5 {[%clk 0:02:46.4]} 9... Bxe5
{[%clk 0:02:30.5]} 10. Bd2 {[%clk 0:02:46.7]} 10... O-O {[%clk 0:02:25.8]} 11.
Bc4 {[%clk 0:02:46.2]} 11... Qc5 {[%clk 0:02:03.2]} 12. Bb3 {[%clk 0:02:40.9]}
12... Nc6 {[%clk 0:01:56.6]} 13. Rc1 {[%clk 0:02:35.9]} 13... Qe7 {[%clk
0:01:18.1]} 14. O-O {[%clk 0:02:34.3]} 14... Be6 {[%clk 0:01:17.9]} 15. Bxe6
{[%clk 0:02:16.8]} 15... Qxe6 {[%clk 0:01:19.8]} 16. Qa4 {[%clk 0:02:11.5]}
16... Rad8 {[%clk 0:01:16.6]} 17. Rfd1 {[%clk 0:02:11.8]} 17... Rd3 {[%clk
0:01:05.8]} 18. Be1 {[%clk 0:02:04.3]} 18... Rfd8 {[%clk 0:01:02.7]} 19. Rxd3
{[%clk 0:02:04]} 19... Rxd3 {[%clk 0:01:04.6]} 20. Qb5 {[%clk 0:02:04.4]} 20...
Qd6 {[%clk 0:00:54.9]} 21. g3 {[%clk 0:01:48.3]} 21... Bxc3 {[%clk 0:00:52.5]}
22. Bxc3 {[%clk 0:01:46.9]} 22... b6 {[%clk 0:00:33.8]} 23. Qg5 {[%clk
0:01:42.7]} 23... Rd1+ {[%clk 0:00:21.4]} 24. Rxd1 {[%clk 0:01:41.9]} 24...
Qxd1+ {[%clk 0:00:23.3]} 25. Kg2 {[%clk 0:01:43.6]} 25... Qd6 {[%clk 0:00:25.2]}
26. e4 {[%clk 0:01:41.8]} 26... Ne7 {[%clk 0:00:21.2]} 27. Qh6 {[%clk
0:01:31.4]} 27... f6 {[%clk 0:00:22]} 28. Qe3 {[%clk 0:01:30.7]} 28... Qe6
{[%clk 0:00:20.6]} 29. Qd4 {[%clk 0:01:28.7]} 29... Kf7 {[%clk 0:00:21]} 30. b3
{[%clk 0:01:29.4]} 30... Nc6 {[%clk 0:00:21.8]} 31. Qd3 {[%clk 0:01:29.5]} 31...
Ne5 {[%clk 0:00:22.6]} 32. Qd4 {[%clk 0:01:27.3]} 32... c5 {[%clk 0:00:20.9]}
33. Qe3 {[%clk 0:01:25.9]} 33... Nc6 {[%clk 0:00:22.2]} 34. Qf4 {[%clk
0:01:25.2]} 34... Ne7 {[%clk 0:00:21.5]} 35. f3 {[%clk 0:01:24.2]} 35... f5
{[%clk 0:00:22.8]} 36. g4 {[%clk 0:01:16.8]} 36... Ke8 {[%clk 0:00:23.2]} 37.
gxf5 {[%clk 0:01:15.1]} 37... gxf5 {[%clk 0:00:24.3]} 38. Qb8+ {[%clk
0:01:14.9]} 38... Kf7 {[%clk 0:00:24.7]} 39. Qf4 {[%clk 0:01:08.4]} 39... Kf8
{[%clk 0:00:23.9]} 40. Kf2 {[%clk 0:01:03.5]} 40... Ke8 {[%clk 0:00:21.4]} 41.
Qb8+ {[%clk 0:00:59.5]} 41... Kf7 {[%clk 0:00:22.2]} 42. Qf4 {[%clk 0:00:52.1]}
42... Ke8 {[%clk 0:00:22.8]} 43. h4 {[%clk 0:00:53.5]} 43... fxe4 {[%clk
0:00:23.6]} 44. fxe4 {[%clk 0:00:55.4]} 44... Ng6 {[%clk 0:00:21.7]} 45. Qb8+
{[%clk 0:00:53.8]} 45... Kf7 {[%clk 0:00:20.5]} 46. Qxa7+ {[%clk 0:00:54.6]}
46... Ne7 {[%clk 0:00:21.9]} 47. Qc7 {[%clk 0:00:40.7]} 47... Qxe4 {[%clk
0:00:20.4]} 48. Qg3 {[%clk 0:00:42]} 48... Qf5+ {[%clk 0:00:21.3]} 49. Qf3
{[%clk 0:00:42.1]} 49... Qxf3+ {[%clk 0:00:21.2]} 50. Kxf3 {[%clk 0:00:44]}
50... Nd5 {[%clk 0:00:21.3]} 51. Bd2 {[%clk 0:00:44.4]} 51... Ke6 {[%clk
0:00:20.7]} 52. Ke4 {[%clk 0:00:43.1]} 52... Nf6+ {[%clk 0:00:21.5]} 53. Kf4
{[%clk 0:00:44.6]} 53... h6 {[%clk 0:00:18.5]} 54. Kf3 {[%clk 0:00:42.6]} 54...
Kf5 {[%clk 0:00:19.3]} 55. Bxh6 {[%clk 0:00:41.1]} 55... Ng4 {[%clk 0:00:20.6]}
56. Bf4 {[%clk 0:00:39.5]} 56... Nf6 {[%clk 0:00:20.9]} 57. a4 {[%clk
0:00:35.6]} 57... Nd5 {[%clk 0:00:20.1]} 58. Bd6 {[%clk 0:00:35.8]} 58... Nc3
{[%clk 0:00:18.1]} 59. Ke3 {[%clk 0:00:31.8]} 59... Ne4 {[%clk 0:00:17.7]} 60.
Bc7 {[%clk 0:00:32.1]} 60... Nf6 {[%clk 0:00:16.5]} 61. Kd3 {[%clk 0:00:31.1]}
61... Nd5 {[%clk 0:00:17.2]} 62. Bd8 {[%clk 0:00:32.5]} 62... Ke6 {[%clk
0:00:16.7]} 63. Kc4 {[%clk 0:00:31.9]} 63... Ne3+ {[%clk 0:00:09.6]} 64. Kb5
{[%clk 0:00:31.5]} 64... Kd5 {[%clk 0:00:08.5]} 65. Bxb6 {[%clk 0:00:31.6]}
65... c4 {[%clk 0:00:08.8]} 66. Bxe3 {[%clk 0:00:30.4]} 66... cxb3 {[%clk
0:00:09.5]} 67. Bc1 {[%clk 0:00:30.8]} 67... Kd4 {[%clk 0:00:11.1]} 68. Kb4
{[%clk 0:00:31.5]} 68... Kd3 {[%clk 0:00:10.6]} 69. Kxb3 {[%clk 0:00:32.1]} 1-0